[Event "Chessity Nationale Pupillendag 2018 - Groep F"]
[Site "Meppel, Netherlands"]
[Date "2018.06.23"]
[Round "1.1"]
[White "Van Lingen, Xander"]
[Black "Grooten, Tommy"]
[Result "0-1"]
[TimeControl "15 min + 10 sec"]
[WhiteElo "502"]
[BlackElo "1408"]

1. e4 {[%clk 00:15:18]} {[%emt 00:00:01]} c5 {[%clk 00:15:19]} 2. Nc3 {[%clk
00:15:24]} {[%emt 00:00:04]} e6 {[%clk 00:15:29]} {[%emt 00:00:01]} 3. Nf3
{[%clk 00:15:31]} {[%emt 00:00:02]} d6 {[%clk 00:15:31]} {[%emt 00:00:09]} 4.
Bc4 {[%clk 00:15:32]} {[%emt 00:00:09]} a6 {[%clk 00:15:39]} {[%emt 00:00:02]}
5. O-O {[%clk 00:15:38]} {[%emt 00:00:03]} b5 {[%clk 00:15:48]} {[%emt
00:00:01]} 6. Bb3 {[%clk 00:15:38]} {[%emt 00:00:10]} c4 {[%clk 00:15:57]}
{[%emt 00:00:02]} 7. Bxc4 {[%clk 00:15:27]} {[%emt 00:00:20]} bxc4 {[%clk
00:16:06]} {[%emt 00:00:02]} 8. d3 {[%clk 00:15:27]} {[%emt 00:00:10]} cxd3
{[%clk 00:16:12]} {[%emt 00:00:05]} 9. cxd3 {[%clk 00:15:31]} {[%emt 00:00:05]}
Nf6 {[%clk 00:16:15]} {[%emt 00:00:06]} 10. Bg5 {[%clk 00:15:35]} {[%emt
00:00:06]} Be7 {[%clk 00:16:24]} {[%emt 00:00:01]} 11. e5 {[%clk 00:15:38]}
{[%emt 00:00:07]} dxe5 {[%clk 00:16:29]} {[%emt 00:00:06]} 12. Nxe5 {[%clk
00:15:45]} {[%emt 00:00:03]} Qa5 {[%clk 00:16:14]} {[%emt 00:00:25]} 13. Nc4
{[%clk 00:15:37]} {[%emt 00:00:14]} Qc5 {[%clk 00:15:42]} {[%emt 00:00:46]} 14.
Bxf6 {[%clk 00:15:31]} {[%emt 00:00:15]} Bxf6 {[%clk 00:15:47]} {[%emt
00:00:06]} 15. Re1 {[%clk 00:15:02]} {[%emt 00:00:38]} Bxc3 {[%clk 00:15:50]}
{[%emt 00:00:07]} 16. Re2 {[%clk 00:14:57]} {[%emt 00:00:15]} Bd4 {[%clk
00:15:38]} {[%emt 00:00:22]} 17. Rc1 {[%clk 00:14:44]} {[%emt 00:00:19]} Qd5
{[%clk 00:14:51]} {[%emt 00:01:02]} 18. Nb6 {[%clk 00:14:41]} {[%emt 00:00:12]}
Bxb6 {[%clk 00:14:38]} {[%emt 00:00:23]} 19. Rxc8+ {[%clk 00:14:45]} {[%emt
00:00:07]} Bd8 {[%clk 00:14:43]} {[%emt 00:00:05]} 20. Qa4+ {[%clk 00:14:43]}
{[%emt 00:00:10]} Qd7 {[%clk 00:14:34]} {[%emt 00:00:20]} 21. Qa5 {[%clk
00:14:26]} {[%emt 00:00:21]} Nc6 {[%clk 00:14:28]} {[%emt 00:00:23]} 22. Rc2
{[%clk 00:14:11]} {[%emt 00:00:24]} Rxc8 {[%clk 00:14:19]} {[%emt 00:00:19]} 23.
Qxa6 {[%clk 00:14:13]} {[%emt 00:00:08]} Bc7 {[%clk 00:13:41]} {[%emt
00:00:49]} 24. Rxc6 {[%clk 00:14:08]} {[%emt 00:00:12]} Bxh2+ {[%clk 00:13:36]}
{[%emt 00:00:17]} 25. Kxh2 {[%clk 00:14:01]} {[%emt 00:00:16]} Qxc6 {[%clk
00:13:45]} {[%emt 00:00:02]} 26. Qa3 {[%clk 00:13:51]} {[%emt 00:00:17]} Kd7
{[%clk 00:13:52]} {[%emt 00:00:07]} 27. Qb4 {[%clk 00:13:15]} {[%emt 00:00:40]}
Qd6 {[%clk 00:14:01]} {[%emt 00:00:06]} 28. Qxd6+ {[%clk 00:13:18]} {[%emt
00:00:08]} Kxd6 {[%clk 00:14:10]} {[%emt 00:00:01]} 29. a4 {[%clk 00:13:20]}
{[%emt 00:00:07]} Rc2 {[%clk 00:14:16]} {[%emt 00:00:04]} 30. a5 {[%clk
00:13:29]} {[%emt 00:00:02]} Rxb2 {[%clk 00:14:24]} {[%emt 00:00:02]} 31. a6
{[%clk 00:13:37]} {[%emt 00:00:02]} Ra2 {[%clk 00:14:33]} 32. a7 {[%clk
00:13:45]} {[%emt 00:00:01]} Ke5 {[%clk 00:14:41]} {[%emt 00:00:02]} 33. a8=Q
{[%emt 00:00:04]} Rhxa8 {[%emt 00:00:01]} 34. g3 {[%clk 00:13:43]} {[%emt
00:00:07]} Kd4 {[%clk 00:14:50]} {[%emt 00:00:02]} 35. Kh3 {[%clk 00:13:47]}
{[%emt 00:00:05]} R8a5 {[%clk 00:14:54]} {[%emt 00:00:06]} 36. g4 {[%clk
00:13:45]} {[%emt 00:00:12]} Kxd3 {[%clk 00:15:02]} {[%emt 00:00:03]} 37. Kh4
{[%clk 00:13:51]} {[%emt 00:00:03]} g6 {[%clk 00:15:07]} {[%emt 00:00:06]} 38.
g5 {[%clk 00:13:51]} {[%emt 00:00:09]} R5a4 {[%clk 00:15:15]} {[%emt 00:00:03]}
39. f4 {[%clk 00:13:55]} {[%emt 00:00:05]} Ke3 {[%clk 00:15:18]} {[%emt
00:00:07]} 40. Kg3 {[%clk 00:13:59]} {[%emt 00:00:03]} Rxf4 {[%clk 00:15:26]}
{[%emt 00:00:05]} 41. Kh3 {[%clk 00:14:05]} {[%emt 00:00:04]} Rf3 {[%clk
00:15:35]} {[%emt 00:00:02]} 42. Kh4 {[%clk 00:14:10]} {[%emt 00:00:03]} Ra4
{[%clk 00:15:43]} {[%emt 00:00:04]} 0-1

[Event "Chessity Nationale Pupillendag 2018 - Groep F"]
[Site "Meppel, Netherlands"]
[Date "2018.06.23"]
[Round "1.2"]
[White "Jakhari, Ansh"]
[Black "Sangwan, Shourya"]
[Result "1-0"]
[TimeControl "15 min + 10 sec"]
[WhiteElo "1293"]
[BlackElo "483"]

1. e4 {[%clk 00:15:17]} {[%emt 00:00:03]} e5 {[%clk 00:15:18]} {[%emt
00:00:02]} 2. Nf3 {[%clk 00:15:25]} {[%emt 00:00:01]} Nf6 {[%clk 00:15:23]}
{[%emt 00:00:06]} 3. Nxe5 {[%clk 00:15:34]} {[%emt 00:00:01]} Nxe4 {[%clk
00:15:27]} {[%emt 00:00:05]} 4. Qe2 {[%clk 00:15:43]} {[%emt 00:00:01]} Qe7
{[%clk 00:14:34]} {[%emt 00:01:04]} 5. Qxe4 {[%clk 00:15:51]} d6 {[%clk
00:14:37]} {[%emt 00:00:07]} 6. d4 {[%clk 00:15:59]} {[%emt 00:00:03]} dxe5
{[%clk 00:14:42]} {[%emt 00:00:04]} 7. dxe5 {[%emt 00:00:03]} Nc6 {[%clk
00:14:48]} {[%emt 00:00:03]} 8. Bf4 {[%clk 00:16:06]} {[%emt 00:00:13]} g6
{[%clk 00:14:31]} {[%emt 00:00:26]} 9. Bb5 {[%clk 00:16:13]} {[%emt 00:00:04]}
Qc5 {[%clk 00:14:19]} {[%emt 00:00:22]} 10. Nc3 {[%clk 00:16:05]} {[%emt
00:00:18]} a6 {[%clk 00:14:16]} {[%emt 00:00:13]} 11. Bxc6+ {[%clk 00:16:11]}
{[%emt 00:00:04]} bxc6 {[%clk 00:14:23]} {[%emt 00:00:02]} 12. O-O-O {[%clk
00:16:08]} {[%emt 00:00:13]} Bf5 {[%clk 00:14:16]} {[%emt 00:00:18]} 13. Qe2
{[%clk 00:15:50]} {[%emt 00:00:27]} Bg7 {[%emt 00:00:40]} 14. Rhe1 {[%clk
00:15:37]} {[%emt 00:00:20]} O-O {[%clk 00:13:46]} {[%emt 00:00:14]} 15. g4
{[%clk 00:14:47]} {[%emt 00:00:59]} Be6 {[%clk 00:13:23]} {[%emt 00:00:34]} 16.
h4 {[%clk 00:14:16]} {[%emt 00:00:40]} Rad8 {[%clk 00:13:00]} {[%emt 00:00:34]}
17. Rxd8 {[%clk 00:13:57]} {[%emt 00:00:30]} Rxd8 {[%clk 00:13:08]} {[%emt
00:00:01]} 18. h5 {[%clk 00:13:46]} {[%emt 00:00:21]} gxh5 {[%clk 00:13:15]}
{[%emt 00:00:03]} 19. gxh5 {[%clk 00:13:54]} {[%emt 00:00:01]} Rd4 {[%clk
00:13:03]} {[%emt 00:00:22]} 20. Be3 {[%clk 00:13:49]} {[%emt 00:00:15]} Qxe5
{[%clk 00:12:56]} {[%emt 00:00:18]} 21. Bxd4 {[%clk 00:13:49]} {[%emt
00:00:10]} Qxd4 {[%clk 00:13:03]} {[%emt 00:00:03]} 22. Rg1 {[%clk 00:13:41]}
{[%emt 00:00:18]} Qf4+ {[%clk 00:12:52]} {[%emt 00:00:20]} 23. Kb1 {[%clk
00:13:37]} {[%emt 00:00:15]} h6 {[%clk 00:12:03]} {[%emt 00:00:59]} 1-0

[Event "Chessity Nationale Pupillendag 2018 - Groep F"]
[Site "Meppel, Netherlands"]
[Date "2018.06.23"]
[Round "1.3"]
[White "Dijcker, Thymen"]
[Black "Kazarjan, Gachatur"]
[Result "0-1"]
[TimeControl "15 min + 10 sec"]
[WhiteElo "468"]
[BlackElo "1020"]

1. e4 {[%clk 00:15:18]} {[%emt 00:00:01]} e6 {[%clk 00:15:18]} {[%emt
00:00:02]} 2. Nf3 {[%clk 00:15:25]} {[%emt 00:00:03]} d5 {[%clk 00:15:26]}
{[%emt 00:00:03]} 3. e5 {[%clk 00:15:31]} {[%emt 00:00:05]} Nc6 {[%clk
00:15:25]} {[%emt 00:00:10]} 4. d4 {[%clk 00:15:38]} {[%emt 00:00:02]} b6
{[%clk 00:15:27]} {[%emt 00:00:08]} 5. Bb5 {[%clk 00:15:45]} {[%emt 00:00:04]}
Bb7 {[%clk 00:15:32]} {[%emt 00:00:05]} 6. Nbd2 {[%clk 00:15:46]} {[%emt
00:00:08]} a6 {[%clk 00:15:41]} {[%emt 00:00:02]} 7. Bd3 {[%clk 00:15:51]}
{[%emt 00:00:05]} Be7 {[%clk 00:15:40]} {[%emt 00:00:11]} 8. Nb3 {[%clk
00:15:54]} {[%emt 00:00:07]} a5 {[%clk 00:15:33]} {[%emt 00:00:16]} 9. Bf4
{[%clk 00:15:55]} {[%emt 00:00:09]} a4 {[%clk 00:15:42]} {[%emt 00:00:02]} 10.
Nbd2 {[%clk 00:15:57]} {[%emt 00:00:07]} a3 {[%clk 00:15:50]} {[%emt 00:00:03]}
11. b3 {[%clk 00:15:51]} {[%emt 00:00:15]} Bb4 {[%clk 00:15:56]} {[%emt
00:00:05]} 12. Bg5 {[%clk 00:15:47]} {[%emt 00:00:14]} Nge7 {[%clk 00:16:01]}
{[%emt 00:00:05]} 13. O-O {[%clk 00:15:50]} {[%emt 00:00:07]} Bc3 {[%clk
00:16:09]} {[%emt 00:00:02]} 14. Rb1 {[%clk 00:15:56]} {[%emt 00:00:04]} Bxd4
{[%clk 00:16:16]} {[%emt 00:00:03]} 15. Nxd4 {[%clk 00:16:01]} {[%emt
00:00:03]} Nxd4 {[%clk 00:16:23]} {[%emt 00:00:04]} 16. Be3 {[%clk 00:15:52]}
{[%emt 00:00:19]} Ndc6 {[%clk 00:16:24]} {[%emt 00:00:09]} 17. Bb5 {[%clk
00:15:57]} {[%emt 00:00:05]} O-O {[%clk 00:16:30]} {[%emt 00:00:04]} 18. Bxc6
{[%clk 00:15:55]} {[%emt 00:00:11]} Nxc6 {[%clk 00:16:38]} {[%emt 00:00:04]} 19.
Bf4 {[%clk 00:15:58]} {[%emt 00:00:07]} Ne7 {[%clk 00:16:30]} {[%emt 00:00:17]}
20. Bg5 {[%clk 00:15:59]} {[%emt 00:00:08]} c5 {[%clk 00:16:39]} {[%emt
00:00:03]} 21. Nf3 {[%clk 00:15:55]} {[%emt 00:00:14]} Qc7 {[%clk 00:16:41]}
{[%emt 00:00:08]} 22. Qe2 {[%clk 00:15:46]} {[%emt 00:00:18]} Ng6 {[%clk
00:16:43]} {[%emt 00:00:08]} 23. Nh4 {[%clk 00:15:33]} {[%emt 00:00:23]} Qxe5
{[%clk 00:16:40]} {[%emt 00:00:14]} 24. Nxg6 {[%clk 00:15:34]} {[%emt
00:00:06]} Qxe2 {[%clk 00:16:48]} {[%emt 00:00:05]} 25. Nxf8 {[%clk 00:15:35]}
{[%emt 00:00:06]} Kxf8 {[%clk 00:16:56]} {[%emt 00:00:04]} 26. Rfe1 {[%clk
00:15:28]} {[%emt 00:00:16]} Qxc2 {[%clk 00:17:03]} {[%emt 00:00:04]} 27. Rbc1
{[%clk 00:15:37]} {[%emt 00:00:02]} Qg6 {[%clk 00:17:10]} {[%emt 00:00:02]} 28.
Bf4 {[%clk 00:15:34]} {[%emt 00:00:09]} d4 {[%clk 00:17:16]} {[%emt 00:00:09]}
29. Bd6+ {[%clk 00:15:40]} {[%emt 00:00:03]} Kg8 {[%clk 00:17:23]} {[%emt
00:00:03]} 30. Rcd1 {[%clk 00:15:33]} {[%emt 00:00:15]} Qxg2+ {[%clk 00:17:30]}
{[%emt 00:00:05]} 0-1

[Event "Chessity Nationale Pupillendag 2018 - Groep F"]
[Site "Meppel, Netherlands"]
[Date "2018.06.23"]
[Round "1.4"]
[White "Van Batenburg, Mees"]
[Black "Vleming, Josefien"]
[Result "1-0"]
[TimeControl "15 min + 10 sec"]
[WhiteElo "962"]
[BlackElo "465"]

1. e4 {[%clk 00:15:19]} e5 {[%clk 00:15:19]} {[%emt 00:00:01]} 2. Nf3 {[%clk
00:15:28]} {[%emt 00:00:02]} Nc6 {[%clk 00:15:28]} {[%emt 00:00:01]} 3. Bc4
{[%clk 00:15:36]} {[%emt 00:00:02]} Nf6 {[%clk 00:15:25]} {[%emt 00:00:13]} 4.
Ng5 {[%clk 00:15:24]} {[%emt 00:00:22]} Qe7 {[%clk 00:15:12]} {[%emt 00:00:23]}
5. Bxf7+ {[%clk 00:15:23]} {[%emt 00:00:09]} Kd8 {[%clk 00:15:18]} {[%emt
00:00:05]} 6. Nc3 {[%clk 00:15:24]} {[%emt 00:00:09]} d6 {[%clk 00:15:00]}
{[%emt 00:00:29]} 7. Bc4 {[%clk 00:15:01]} {[%emt 00:00:32]} h6 {[%clk
00:15:06]} {[%emt 00:00:05]} 8. Nf7+ {[%clk 00:15:10]} {[%emt 00:00:02]} Ke8
{[%clk 00:14:38]} {[%emt 00:00:37]} 9. Nxh8 {[%clk 00:14:55]} {[%emt 00:00:04]}
Be6 {[%clk 00:14:45]} {[%emt 00:00:23]} 10. Bxe6 {[%clk 00:14:23]} {[%emt
00:00:14]} Qxe6 {[%clk 00:14:52]} {[%emt 00:00:32]} 11. Ng6 {[%clk 00:14:12]}
{[%emt 00:00:20]} d5 {[%clk 00:14:04]} {[%emt 00:00:59]} 12. exd5 {[%clk
00:13:47]} {[%emt 00:00:33]} Nxd5 {[%clk 00:14:09]} {[%emt 00:00:07]} 13. Nxf8
{[%clk 00:13:06]} {[%emt 00:00:24]} Kxf8 {[%clk 00:14:13]} {[%emt 00:00:31]} 14.
Qf3+ {[%clk 00:13:12]} {[%emt 00:00:05]} Nf4 {[%clk 00:14:00]} {[%emt
00:00:23]} 15. g3 {[%clk 00:13:14]} {[%emt 00:00:09]} Nd4 {[%clk 00:13:42]}
{[%emt 00:00:28]} 16. Qe4 {[%clk 00:12:47]} {[%emt 00:00:36]} Rb8 {[%clk
00:13:12]} {[%emt 00:00:40]} 17. gxf4 {[%clk 00:12:37]} {[%emt 00:00:21]} c5
{[%clk 00:12:35]} {[%emt 00:00:47]} 18. fxe5 {[%clk 00:12:15]} {[%emt
00:00:32]} b6 {[%clk 00:12:22]} {[%emt 00:00:22]} 19. Nd5 {[%clk 00:11:28]}
{[%emt 00:00:57]} Rd8 {[%clk 00:11:43]} {[%emt 00:00:38]} 1-0

[Event "Chessity Nationale Pupillendag 2018 - Groep F"]
[Site "Meppel, Netherlands"]
[Date "2018.06.23"]
[Round "1.5"]
[White "Visser, Alma"]
[Black "Madularea, David"]
[Result "0-1"]
[TimeControl "15 min + 10 sec"]
[WhiteElo "463"]
[BlackElo "961"]

1. e4 {[%clk 00:15:19]} e5 {[%clk 00:15:19]} {[%emt 00:00:01]} 2. Bc4 {[%clk
00:15:28]} Nf6 {[%clk 00:15:23]} {[%emt 00:00:06]} 3. Nf3 {[%emt 00:00:02]} Bc5
{[%emt 00:00:04]} 4. Nxe5 {[%clk 00:15:29]} {[%emt 00:00:04]} O-O {[%clk
00:15:21]} {[%emt 00:00:11]} 5. Nxf7 {[%clk 00:15:37]} {[%emt 00:00:02]} Rxf7
{[%clk 00:15:29]} {[%emt 00:00:02]} 6. Bxf7+ {[%clk 00:15:45]} {[%emt
00:00:03]} Kxf7 {[%clk 00:15:37]} {[%emt 00:00:01]} 7. Nc3 {[%clk 00:15:54]}
{[%emt 00:00:02]} Nc6 {[%clk 00:15:45]} {[%emt 00:00:02]} 8. O-O {[%clk
00:15:42]} {[%emt 00:00:22]} Kg8 {[%clk 00:15:42]} {[%emt 00:00:10]} 9. d3
{[%clk 00:15:41]} {[%emt 00:00:12]} d6 {[%clk 00:15:31]} {[%emt 00:00:19]} 10.
Bg5 {[%clk 00:15:48]} {[%emt 00:00:06]} Qf8 {[%clk 00:15:27]} {[%emt 00:00:11]}
11. Nd5 {[%clk 00:15:25]} {[%emt 00:00:36]} Nxd5 {[%clk 00:15:31]} {[%emt
00:00:06]} 12. exd5 {[%clk 00:15:32]} {[%emt 00:00:03]} Nb4 {[%clk 00:15:20]}
{[%emt 00:00:20]} 13. Qe2 {[%clk 00:15:11]} {[%emt 00:00:32]} Nxd5 {[%clk
00:15:21]} {[%emt 00:00:10]} 14. c4 {[%clk 00:15:09]} {[%emt 00:00:12]} Nb6
{[%clk 00:14:52]} {[%emt 00:00:29]} 15. Qe4 {[%clk 00:14:35]} {[%emt 00:00:53]}
c6 {[%clk 00:14:02]} {[%emt 00:00:59]} 16. Be7 {[%clk 00:14:31]} {[%emt
00:00:15]} Qe8 {[%clk 00:13:57]} {[%emt 00:00:12]} 17. Rae1 {[%clk 00:14:03]}
{[%emt 00:00:41]} Bb4 {[%clk 00:13:28]} {[%emt 00:00:36]} 18. Re3 {[%clk
00:14:09]} {[%emt 00:00:07]} Bc5 {[%clk 00:13:35]} {[%emt 00:00:03]} 19. Rh3
{[%clk 00:14:16]} {[%emt 00:00:02]} h6 {[%clk 00:13:27]} {[%emt 00:00:15]} 20.
Rg3 {[%clk 00:13:27]} {[%emt 00:01:03]} d5 {[%clk 00:13:25]} {[%emt 00:00:13]}
21. Qe5 {[%clk 00:13:26]} {[%emt 00:00:07]} Qxe7 {[%clk 00:13:30]} {[%emt
00:00:08]} 22. Re1 {[%clk 00:12:58]} {[%emt 00:00:38]} Qxe5 {[%clk 00:13:17]}
{[%emt 00:00:23]} 23. Rxe5 {[%clk 00:13:03]} {[%emt 00:00:04]} Bd6 {[%clk
00:13:22]} {[%emt 00:00:06]} 24. Re8+ {[%clk 00:13:07]} {[%emt 00:00:07]} Kf7
{[%clk 00:13:31]} {[%emt 00:00:01]} 25. Rge3 {[%clk 00:13:12]} {[%emt
00:00:04]} Bd7 {[%clk 00:12:35]} {[%emt 00:01:07]} 26. Rxa8 {[%clk 00:12:46]}
{[%emt 00:00:35]} Nxa8 {[%clk 00:12:44]} {[%emt 00:00:02]} 27. Rf3+ {[%clk
00:12:51]} {[%emt 00:00:05]} Kg6 {[%clk 00:12:39]} {[%emt 00:00:10]} 28. h3
{[%clk 00:12:56]} {[%emt 00:00:09]} Nc7 {[%clk 00:12:40]} {[%emt 00:00:09]} 29.
g4 {[%clk 00:12:57]} {[%emt 00:00:08]} b6 {[%clk 00:12:26]} {[%emt 00:00:25]}
30. d4 {[%clk 00:12:55]} {[%emt 00:00:13]} dxc4 {[%clk 00:12:33]} {[%emt
00:00:04]} 31. b3 {[%clk 00:13:03]} {[%emt 00:00:01]} cxb3 {[%clk 00:12:35]}
{[%emt 00:00:07]} 32. axb3 {[%emt 00:00:02]} 0-1

[Event "Chessity Nationale Pupillendag 2018 - Groep F"]
[Site "Meppel, Netherlands"]
[Date "2018.06.23"]
[Round "1.6"]
[White "Paulzen, Yuko"]
[Black "Lopes, Samuel"]
[Result "1-0"]
[TimeControl "15 min + 10 sec"]
[WhiteElo "931"]
[BlackElo "455"]

1. d4 {[%clk 00:15:18]} {[%emt 00:00:01]} e6 {[%clk 00:14:55]} {[%emt
00:00:19]} 2. Nc3 {[%clk 00:15:11]} {[%emt 00:00:23]} Bb4 {[%emt 00:00:28]} 3.
Bd2 {[%emt 00:00:25]} Nc6 {[%emt 00:00:42]} 4. Nf3 {[%emt 00:00:35]} Nf6 {[%clk
00:12:24]} {[%emt 00:00:17]} 5. a3 {[%clk 00:15:20]} Bxc3 {[%clk 00:12:13]}
{[%emt 00:00:35]} 6. Bxc3 {[%clk 00:15:25]} {[%emt 00:00:07]} O-O {[%clk
00:11:46]} {[%emt 00:00:19]} 7. e3 {[%clk 00:15:32]} d6 {[%clk 00:11:31]}
{[%emt 00:00:42]} 8. Bb5 {[%clk 00:15:27]} {[%emt 00:00:18]} Bd7 {[%clk
00:11:21]} {[%emt 00:00:19]} 9. O-O {[%clk 00:15:09]} {[%emt 00:00:28]} a6
{[%clk 00:11:05]} {[%emt 00:00:26]} 10. Bxc6 {[%clk 00:14:46]} {[%emt
00:00:34]} Bxc6 {[%clk 00:10:57]} {[%emt 00:00:19]} 11. Re1 {[%clk 00:13:20]}
{[%emt 00:01:36]} Ne4 {[%clk 00:10:45]} {[%emt 00:00:20]} 12. Qd3 {[%clk
00:12:52]} {[%emt 00:00:39]} Nxc3 {[%clk 00:10:30]} {[%emt 00:00:25]} 13. Qxc3
{[%clk 00:12:37]} {[%emt 00:00:24]} Qf6 {[%clk 00:10:22]} {[%emt 00:00:18]} 14.
e4 {[%clk 00:12:10]} {[%emt 00:00:38]} Qg6 {[%clk 00:10:06]} {[%emt 00:00:25]}
15. Qe3 {[%clk 00:10:44]} {[%emt 00:01:37]} Rae8 {[%clk 00:09:30]} {[%emt
00:00:45]} 16. c3 {[%clk 00:09:27]} {[%emt 00:01:28]} f6 {[%clk 00:09:01]}
{[%emt 00:00:39]} 17. Rad1 {[%clk 00:08:12]} {[%emt 00:01:26]} f5 {[%clk
00:08:54]} {[%emt 00:00:16]} 18. exf5 {[%clk 00:07:30]} {[%emt 00:00:51]} exf5
{[%clk 00:08:20]} {[%emt 00:00:45]} 19. Qf4 {[%clk 00:07:20]} {[%emt 00:00:21]}
Rxe1+ {[%clk 00:07:47]} {[%emt 00:00:42]} 20. Rxe1 {[%clk 00:07:11]} {[%emt
00:00:19]} h5 {[%clk 00:06:31]} {[%emt 00:01:24]} 21. Qg5 {[%clk 00:06:53]}
{[%emt 00:00:30]} Qf7 {[%clk 00:05:51]} {[%emt 00:00:43]} 22. Re7 {[%clk
00:06:47]} {[%emt 00:00:23]} Qb3 {[%clk 00:05:20]} {[%emt 00:00:40]} 23. Qxg7+
{[%emt 00:00:30]} 1-0

[Event "Chessity Nationale Pupillendag 2018 - Groep F"]
[Site "Meppel, Netherlands"]
[Date "2018.06.23"]
[Round "2.1"]
[White "Grooten, Tommy"]
[Black "Van Loon, Joost"]
[Result "1-0"]
[TimeControl "15 min + 10 sec"]
[WhiteElo "1408"]
[BlackElo "613"]

1. e4 {[%clk 00:15:19]} {[%emt 00:00:01]} e5 {[%clk 00:15:19]} 2. Nf3 {[%clk
00:15:27]} {[%emt 00:00:02]} Nc6 {[%clk 00:15:28]} 3. Bc4 {[%clk 00:15:36]}
{[%emt 00:00:01]} Bc5 {[%clk 00:15:37]} {[%emt 00:00:01]} 4. b4 {[%clk
00:15:45]} {[%emt 00:00:02]} Bxb4 {[%clk 00:15:45]} {[%emt 00:00:03]} 5. c3
{[%clk 00:15:54]} Bd6 {[%clk 00:15:52]} {[%emt 00:00:03]} 6. O-O {[%clk
00:15:26]} {[%emt 00:00:37]} Nf6 {[%clk 00:16:00]} {[%emt 00:00:03]} 7. d4
{[%clk 00:14:40]} {[%emt 00:00:56]} exd4 {[%clk 00:15:56]} {[%emt 00:00:14]} 8.
cxd4 {[%clk 00:14:48]} {[%emt 00:00:01]} Nxe4 {[%clk 00:16:04]} {[%emt
00:00:02]} 9. Re1 {[%clk 00:14:43]} {[%emt 00:00:16]} Qe7 {[%clk 00:15:52]}
{[%emt 00:00:21]} 10. Bd5 {[%clk 00:14:26]} {[%emt 00:00:27]} f5 {[%emt
00:00:16]} 11. Ng5 {[%emt 00:00:53]} b6 {[%clk 00:14:18]} {[%emt 00:00:36]} 12.
Nxe4 {[%clk 00:14:29]} {[%emt 00:00:06]} Qh4 {[%clk 00:13:22]} {[%emt
00:01:04]} 13. Nxd6+ {[%clk 00:14:31]} {[%emt 00:00:10]} Kf8 {[%clk 00:12:50]}
{[%emt 00:00:42]} 14. Re8# {[%emt 00:05:01]} 1-0

[Event "Chessity Nationale Pupillendag 2018 - Groep F"]
[Site "Meppel, Netherlands"]
[Date "2018.06.23"]
[Round "2.2"]
[White "Koolhoven, Giovanni"]
[Black "Jakhari, Ansh"]
[Result "0-1"]
[TimeControl "15 min + 10 sec"]
[WhiteElo "598"]
[BlackElo "1293"]

1. e4 {[%clk 00:15:17]} c5 {[%clk 00:15:18]} 2. Nf3 {[%clk 00:15:23]} {[%emt
00:44:03]} d6 {[%clk 00:15:28]} 3. h3 {[%clk 00:15:27]} {[%emt 00:00:04]} Nf6
{[%clk 00:15:35]} {[%emt 00:00:03]} 4. Nc3 {[%clk 00:15:34]} {[%emt 00:00:03]}
Nc6 {[%clk 00:15:44]} {[%emt 00:00:01]} 5. Bc4 {[%clk 00:15:37]} {[%emt
00:00:07]} e6 {[%clk 00:15:53]} {[%emt 00:00:02]} 6. d3 {[%clk 00:15:35]}
{[%emt 00:00:11]} d5 {[%clk 00:16:00]} {[%emt 00:00:03]} 7. exd5 {[%clk
00:15:41]} {[%emt 00:00:04]} exd5 {[%clk 00:16:09]} 8. Bb5 {[%clk 00:15:35]}
{[%emt 00:00:17]} Bd7 {[%clk 00:16:14]} {[%emt 00:00:05]} 9. O-O {[%clk
00:15:16]} {[%emt 00:00:28]} Be7 {[%clk 00:16:23]} {[%emt 00:00:01]} 10. Bg5
{[%clk 00:15:19]} {[%emt 00:00:07]} d4 {[%emt 00:00:47]} 11. Ne2 {[%clk
00:14:54]} {[%emt 00:00:02]} O-O {[%clk 00:16:20]} {[%emt 00:00:09]} 12. Nf4
{[%clk 00:14:56]} {[%emt 00:00:05]} a6 {[%clk 00:16:05]} {[%emt 00:00:28]} 13.
Ba4 {[%clk 00:14:57]} {[%emt 00:00:08]} b5 {[%clk 00:16:14]} {[%emt 00:00:02]}
14. Bb3 {[%clk 00:15:06]} Na5 {[%clk 00:16:06]} {[%emt 00:00:18]} 15. Bd5
{[%clk 00:14:59]} {[%emt 00:00:13]} Nxd5 {[%clk 00:16:14]} {[%emt 00:00:06]} 16.
Nxd5 {[%emt 00:00:05]} Bxg5 {[%clk 00:16:15]} {[%emt 00:00:08]} 17. Nxg5 {[%clk
00:15:12]} {[%emt 00:00:03]} Qxg5 {[%clk 00:16:23]} {[%emt 00:00:02]} 18. Nc7
{[%emt 00:00:23]} Bxh3 {[%clk 00:16:21]} {[%emt 00:00:10]} 19. g3 {[%clk
00:14:52]} {[%emt 00:00:19]} Ra7 {[%clk 00:16:23]} {[%emt 00:00:08]} 20. Re1
{[%clk 00:14:19]} {[%emt 00:00:43]} Rxc7 {[%clk 00:16:32]} {[%emt 00:00:02]} 21.
Qe2 {[%clk 00:14:22]} {[%emt 00:00:05]} Be6 {[%clk 00:15:55]} {[%emt 00:00:48]}
22. Qe4 {[%clk 00:13:57]} {[%emt 00:00:24]} Bd5 {[%clk 00:16:00]} {[%emt
00:00:16]} 23. Qe8 {[%clk 00:13:44]} {[%emt 00:00:23]} Qh5 {[%clk 00:15:54]}
{[%emt 00:00:15]} 24. Kf1 {[%clk 00:13:22]} {[%emt 00:00:26]} Qh1+ {[%clk
00:16:03]} {[%emt 00:00:08]} 25. Ke2 {[%clk 00:13:26]} {[%emt 00:00:07]} Rxe8+
{[%clk 00:16:11]} {[%emt 00:00:02]} 26. Kd2 {[%clk 00:13:28]} {[%emt 00:00:07]}
Rxe1 {[%clk 00:16:07]} {[%emt 00:00:15]} 27. Rxe1 {[%clk 00:13:35]} {[%emt
00:00:02]} Qh6+ {[%clk 00:16:15]} 28. Kd1 {[%clk 00:13:39]} {[%emt 00:00:07]}
Bf3+ {[%clk 00:16:23]} {[%emt 00:00:03]} 29. Re2 {[%clk 00:13:40]} {[%emt
00:00:08]} Re7 {[%clk 00:16:31]} 30. c3 {[%clk 00:13:41]} {[%emt 00:00:10]}
Bxe2+ {[%clk 00:16:40]} {[%emt 00:00:02]} 31. Kc2 {[%clk 00:13:48]} {[%emt
00:00:02]} Qg6 {[%clk 00:16:45]} {[%emt 00:00:05]} 32. Kd2 {[%clk 00:13:23]}
{[%emt 00:00:36]} Qxd3+ {[%clk 00:16:53]} 33. Kc1 {[%clk 00:13:30]} {[%emt
00:00:03]} Qd1# {[%clk 00:17:02]} {[%emt 00:00:01]} 0-1